fUSD/lending_fUSD_20240425
["ID","MTS","AMOUNT","RATE_DAILY","PERIOD"]
[323494231,1714051841882,-500.0,0.0001262,2]
[323494232,1714051841891,-500.0,0.0001262,2]
[323494233,1714051841900,-500.0,0.0001262,2]
[323494234,1714051841909,-500.0,0.0001262,2]
[323494235,1714051841919,-500.0,0.0001262,2]
[323494236,1714051841928,-500.0,0.0001262,2]
[323494237,1714051841938,-500.0,0.0001262,2]
[323494238,1714051841947,-500.0,0.0001262,2]
[323494239,1714051841957,-500.0,0.0001262,2]
[323494240,1714051841967,-1587.94,0.0001262,2]
[323494241,1714051841976,-500.0,0.0001262,2]
[323494242,1714051841986,-500.0,0.0001262,2]
[323494243,1714051842000,-500.0,0.0001262,2]
[323494244,1714051842010,-643.38,0.0001262,2]
[323494245,1714051842019,-1290.99,0.0001262,2]
[323494246,1714051842029,-500.0,0.0001262,2]
[323494247,1714051842038,-500.0,0.0001262,2]
[323494248,1714051842047,-500.0,0.0001262,2]
[323494249,1714051842057,-500.0,0.0001262,2]
[323494250,1714051842067,-201.72,0.0001262,2]
[323494251,1714051842076,-362.98,0.0001262,2]
[323494252,1714051842086,-500.0,0.0001262,2]
[323494253,1714051842096,-500.0,0.0001262,2]
[323494254,1714051842105,-500.0,0.0001262,2]
[323494255,1714051842115,-236.72,0.0001262,2]
[323494256,1714051842124,-500.0,0.0001262,2]
[323494257,1714051842134,-500.0,0.0001262,2]
[323494258,1714051842144,-500.0,0.0001262,2]
[323494259,1714051842154,-217.6,0.0001262,2]
[323494260,1714051842164,-500.0,0.0001262,2]
[323494261,1714051842174,-500.0,0.0001262,2]
[323494262,1714051842183,-500.0,0.0001262,2]
[323494263,1714051842193,-500.0,0.0001262,2]
[323494264,1714051842202,-532.5,0.0001262,2]
[323494265,1714051842211,-500.0,0.0001262,2]
[323494266,1714051842220,-500.0,0.0001262,2]
[323494267,1714051842230,-500.0,0.0001262,2]
[323494268,1714051842239,-500.0,0.0001262,2]
[323494269,1714051842251,-500.0,0.0001262,2]
[323494270,1714051842261,-500.0,0.0001262,2]
[323494271,1714051842270,-500.0,0.0001262,2]
[323494272,1714051842279,-161.84,0.0001262,2]
[323494273,1714051842288,-150.0,0.0001262,2]
[323494274,1714051842297,-500.0,0.0001262,2]
[323494275,1714051842306,-500.0,0.0001262,2]
[323494276,1714051842315,-500.0,0.0001262,2]
[323494277,1714051842324,-500.0,0.0001262,2]
[323494278,1714051842333,-500.0,0.0001262,2]
[323494279,1714051842343,-500.0,0.0001262,2]
[323494281,1714051842352,-503.17317501,0.0001262,2]
[323494283,1714051842361,-500.0,0.0001262,2]
[323494285,1714051842370,-500.0,0.0001262,2]
[323494286,1714051842379,-452.72635467,0.0001262,2]
[323494287,1714051842389,-502.27429134,0.0001262,2]
[323494288,1714051842398,-500.0,0.0001262,2]
[323494289,1714051842407,-500.0,0.0001262,2]
[323494290,1714051842417,-500.0,0.0001262,2]
[323494291,1714051842427,-500.0,0.0001262,2]
[323494292,1714051842436,-500.0,0.0001262,2]
[323494293,1714051842446,-500.0,0.0001262,2]
[323494294,1714051842455,-500.0,0.0001262,2]
[323494295,1714051842465,-500.0,0.0001262,2]
[323494296,1714051842475,-500.0,0.0001262,2]
[323494297,1714051842484,-500.0,0.0001262,2]
[323494298,1714051842497,-500.0,0.0001262,2]
[323494299,1714051842506,-500.0,0.0001262,2]
[323494300,1714051842516,-500.0,0.0001262,2]
[323494301,1714051842525,-500.0,0.0001262,2]
[323494302,1714051842535,-500.0,0.0001262,2]
[323494303,1714051842545,-500.0,0.0001262,2]
[323494304,1714051842554,-500.0,0.0001262,2]
[323494305,1714051842566,-500.0,0.0001262,2]
[323494306,1714051842576,-500.0,0.0001262,2]
[323494307,1714051842585,-552.88,0.0001262,2]
[323494308,1714051842595,-500.0,0.0001262,2]
[323494309,1714051842604,-500.0,0.0001262,2]
[323494310,1714051842614,-500.0,0.0001262,2]
[323494311,1714051842624,-500.0,0.0001262,2]
[323494312,1714051842633,-500.0,0.0001262,2]
[323494313,1714051842644,-500.0,0.0001262,2]
[323494314,1714051842654,-500.0,0.0001262,2]
[323494315,1714051842664,-583.74,0.0001262,2]
[323494316,1714051842673,-500.0,0.0001262,2]
[323494318,1714051842683,-500.0,0.0001262,2]
[323494320,1714051842693,-500.0,0.0001262,2]
[323494323,1714051842702,-500.0,0.0001262,2]
[323494325,1714051842712,-500.0,0.0001262,2]
[323494327,1714051842721,-500.0,0.0001262,2]
[323494328,1714051842730,-500.0,0.0001262,2]
[323494330,1714051842740,-500.0,0.0001262,2]
[323494331,1714051842753,-500.0,0.0001262,2]
[323494333,1714051842763,-500.0,0.0001262,2]
[323494334,1714051842772,-500.0,0.0001262,2]
[323494335,1714051842782,-500.0,0.0001262,2]
[323494336,1714051842791,-465.81356045,0.0001262,2]
[323494337,1714051842800,-504.6266674,0.0001262,2]
[323494338,1714051842809,-249.64,0.0001262,2]
[323494339,1714051842818,-500.0,0.0001262,2]
[323494340,1714051842828,-500.0,0.0001262,2]
[323494341,1714051842837,-500.0,0.0001262,2]
[323494342,1714051842846,-500.0,0.0001262,2]
[323494344,1714051842856,-500.0,0.0001262,2]
[323494345,1714051842865,-154.07,0.0001262,2]
[323494347,1714051842874,-500.0,0.0001262,2]
[323494348,1714051842884,-500.0,0.0001262,2]
[323494349,1714051842893,-500.0,0.0001262,2]
[323494350,1714051842902,-500.0,0.0001262,2]
[323494351,1714051842911,-500.0,0.0001262,2]
[323494352,1714051842920,-500.0,0.0001262,2]
[323494353,1714051842929,-550.11352438,0.0001262,2]
[323494354,1714051842937,-500.0,0.0001262,2]
[323494355,1714051842946,-500.0,0.0001262,2]
[323494356,1714051842955,-500.0,0.0001262,2]
[323494357,1714051842964,-505.92504864,0.0001262,2]
[323494358,1714051842973,-500.0,0.0001262,2]
[323494359,1714051842981,-500.0,0.0001262,2]
[323494360,1714051842991,-612.73,0.0001262,2]
[323494361,1714051843003,-500.0,0.0001262,2]
[323494362,1714051843012,-413.34776996,0.0001262,2]
[323494363,1714051843021,-574.8777202,0.0001262,2]
[323494364,1714051843030,-500.0,0.0001262,2]
[323494365,1714051843039,-991.74,0.0001262,2]
[323494366,1714051843048,-1000.0,0.0001262,2]
[323494367,1714051843058,-500.0,0.0001262,2]
[323494368,1714051843067,-500.0,0.0001262,2]
[323494369,1714051843076,-500.0,0.0001262,2]
[323494370,1714051843085,-500.0,0.0001262,2]
[323494371,1714051843094,-305.21443504,0.0001262,2]
[323494372,1714051843103,-500.0,0.0001262,2]
[323494373,1714051843112,-500.0,0.0001262,2]
[323494374,1714051843122,-500.0,0.0001262,2]
[323494375,1714051843131,-500.0,0.0001262,2]
[323494376,1714051843140,-500.0,0.0001262,2]
[323494377,1714051843149,-500.0,0.0001262,2]
[323494378,1714051843160,-500.0,0.0001262,2]
[323494379,1714051843169,-500.0,0.0001262,2]
[323494380,1714051843178,-500.0,0.0001262,2]
[323494381,1714051843188,-500.0,0.0001262,2]
[323494382,1714051843197,-500.0,0.0001262,2]
[323494383,1714051843206,-777.68,0.0001262,2]
[323494384,1714051843215,-500.0,0.0001262,2]
[323494385,1714051843224,-500.0,0.0001262,2]
[323494386,1714051843233,-500.0,0.0001262,2]
[323494387,1714051843245,-500.0,0.0001262,2]
[323494388,1714051843255,-500.0,0.0001262,2]
[323494389,1714051843266,-255.33181711,0.0001262,2]
[323494390,1714051843275,-500.0,0.0001262,2]
[323494391,1714051843285,-500.11112978,0.0001262,2]
[323494392,1714051843294,-500.0,0.0001262,2]
[323494393,1714051843304,-500.0,0.0001262,2]
[323494394,1714051843313,-500.0,0.0001262,2]
[323494395,1714051843323,-589.23,0.0001262,2]
[323494396,1714051843332,-500.0,0.0001262,2]
[323494397,1714051843341,-500.23071144,0.0001262,2]
[323494398,1714051843350,-500.0,0.0001262,2]
[323494399,1714051843359,-500.0,0.0001262,2]
[323494400,1714051843368,-500.0,0.0001262,2]
[323494401,1714051843378,-500.0,0.0001262,2]
[323494402,1714051843387,-500.0,0.0001262,2]
[323494403,1714051843397,-500.0,0.0001262,2]
[323494404,1714051843406,-500.0,0.0001262,2]
[323494405,1714051843416,-500.0,0.0001262,2]
[323494406,1714051843425,-500.0,0.0001262,2]
[323494407,1714051843435,-500.0,0.0001262,2]
[323494408,1714051843444,-500.0,0.0001262,2]
[323494409,1714051843453,-500.0,0.0001262,2]
[323494410,1714051843463,-500.0,0.0001262,2]
[323494412,1714051843472,-699.26,0.0001262,2]
[323494413,1714051843481,-500.0,0.0001262,2]
[323494415,1714051843490,-500.0,0.0001262,2]
[323494418,1714051843503,-500.0,0.0001262,2]
[323494419,1714051843513,-500.14378022,0.0001262,2]
[323494420,1714051843522,-500.53873691,0.0001262,2]
[323494422,1714051843531,-500.0,0.0001262,2]
[323494424,1714051843540,-500.0,0.0001262,2]
[323494426,1714051843549,-500.0,0.0001262,2]
[323494427,1714051843558,-501.05508827,0.0001262,2]
[323494428,1714051843571,-500.0,0.0001262,2]
[323494429,1714051843580,-500.0,0.0001262,2]
[323494430,1714051843589,-500.0,0.0001262,2]
[323494431,1714051843598,-500.0,0.0001262,2]
[323494432,1714051843609,-629.45269963,0.0001262,2]
[323494433,1714051843617,-500.0,0.0001262,2]
[323494434,1714051843626,-500.56456721,0.0001262,2]
[323494435,1714051843635,-500.0,0.0001262,2]
[323494436,1714051843645,-500.0,0.0001262,2]
[323494437,1714051843656,-500.0,0.0001262,2]
[323494438,1714051843665,-153.73158109,0.0001262,2]
[323494439,1714051843674,-500.0,0.0001262,2]
[323494440,1714051843683,-500.0,0.0001262,2]
[323494441,1714051843692,-500.0,0.0001262,2]
[323494442,1714051843701,-500.0,0.0001262,2]
[323494443,1714051843710,-500.0,0.0001262,2]
[323494444,1714051843719,-500.0,0.0001262,2]
[323494445,1714051843728,-500.0,0.0001262,2]
[323494446,1714051843737,-500.0,0.0001262,2]
[323494447,1714051843750,-500.0,0.0001262,2]
[323494448,1714051843760,-571.88874838,0.0001262,2]
[323494449,1714051843770,-500.0,0.0001262,2]
[323494450,1714051843780,-500.0,0.0001262,2]
[323494451,1714051843789,-500.0,0.0001262,2]
[323494452,1714051843798,-500.0,0.0001262,2]
[323494453,1714051843807,-646.12847561,0.0001262,2]
[323494454,1714051843816,-500.0,0.0001262,2]
[323494455,1714051843825,-500.0,0.0001262,2]
[323494456,1714051843835,-500.0,0.0001262,2]
[323494457,1714051843844,-500.0,0.0001262,2]
[323494458,1714051843853,-500.0,0.0001262,2]
[323494459,1714051843863,-500.0,0.0001262,2]
[323494460,1714051843873,-500.0,0.0001262,2]
[323494461,1714051843882,-500.0,0.0001262,2]
[323494462,1714051843891,-500.0,0.0001262,2]
[323494463,1714051843901,-500.0,0.0001262,2]
[323494464,1714051843910,-615.04,0.0001262,2]
[323494465,1714051843919,-500.0,0.0001262,2]
[323494466,1714051843928,-1457.19,0.0001262,2]
[323494467,1714051843937,-500.0,0.0001262,2]
[323494468,1714051843946,-500.0,0.00012621,2]
[323494469,1714051843955,-500.0,0.00012621,2]
[323494470,1714051843964,-500.0,0.00012621,2]
[323494471,1714051843973,-500.0,0.00012621,2]
[323494472,1714051843982,-25415.32,0.00012621,2]
[323494473,1714051843991,-1753.27,0.00012621,2]
[323494474,1714051844004,-500.0,0.00012621,2]
[323494475,1714051844014,-500.0,0.00012621,2]
[323494476,1714051844023,-500.0,0.00012621,2]
[323494477,1714051844033,-500.0,0.00012621,2]
[323494478,1714051844043,-500.0,0.00012621,2]
[323494479,1714051844054,-500.0,0.00012621,2]
[323494480,1714051844064,-173.23,0.00012621,2]
[323494481,1714051844074,-500.0,0.00012621,2]
[323494482,1714051844084,-848.78,0.00012621,2]
[323494483,1714051844093,-150.0,0.00012625,2]
[323494484,1714051844103,-150.0,0.00012632,2]
[323494485,1714051844113,-150.0,0.00012633,2]
[323494486,1714051844123,-150.0,0.00012634,2]
[323494487,1714051844133,-150.0,0.00012637,2]
[323494488,1714051844143,-300.0,0.00012639,2]
[323494489,1714051844153,-305.77880619,0.0001264,2]
[323494490,1714051844162,-150.0,0.00012644,2]
[323494491,1714051844173,-150.0,0.00012645,2]
[323494492,1714051844182,-785.211595,0.00012648,2]
[323494493,1714051844193,-150.0,0.00012648,2]
[323494494,1714051844203,-150.0,0.00012655,2]
[323494495,1714051844212,-150.0,0.00012658,2]
[323494496,1714051844222,-300.0,0.0001266,2]
[323494497,1714051844231,-150.0,0.00012661,2]
[323494498,1714051844241,-150.0,0.00012663,2]
[323494499,1714051844253,-151.43915286,0.00012663,2]
[323494500,1714051844263,-150.0,0.0001267,2]
[323494501,1714051844273,-150.0,0.00012672,2]
[323494502,1714051844283,-150.0,0.00012679,2]
[323494503,1714051844292,-150.0,0.00012682,2]
[323494504,1714051844301,-150.0,0.00012685,2]
[323494505,1714051844310,-150.0,0.00012687,2]
[323494506,1714051844319,-150.0,0.00012689,2]
[323494507,1714051844328,-150.0,0.00012694,2]
[323494508,1714051844337,-443.35459668,0.00012696,2]
[323494509,1714051844347,-785.211595,0.00012698,2]
[323494510,1714051844356,-153.11178116,0.00012699,2]
[323494511,1714051844365,-168.14658563,0.00012702,2]
[323494512,1714051844375,-150.0,0.00012704,2]
[323494513,1714051844384,-150.0,0.00012708,2]
[323494514,1714051844394,-151.43915286,0.00012711,2]
[323494515,1714051844403,-150.0,0.00012712,2]
[323494516,1714051844413,-150.0,0.00012712,2]
[323494517,1714051844422,-150.0,0.00012714,2]
[323494518,1714051844431,-10000.0,0.00012715,2]
[323494519,1714051844440,-1136.5,0.00012716,2]
[323494520,1714051844449,-288.26754978,0.00012716,2]
[323494521,1714051844459,-500.0,0.00012716,2]
[323494522,1714051844468,-500.0,0.00012716,2]
[323494523,1714051844477,-500.0,0.00012716,2]
[323494524,1714051844487,-500.0,0.00012716,2]
[323494525,1714051844500,-500.0,0.00012716,2]
[323494526,1714051844509,-500.0,0.00012716,2]
[323494527,1714051844518,-5531.68,0.00012716,2]
[323494528,1714051844526,-500.0,0.00012716,2]
[323494529,1714051844535,-2301.89,0.00012716,2]
[323494530,1714051844545,-3363.14,0.00012716,2]
[323494531,1714051844554,-500.0,0.00012716,2]
[323494532,1714051844565,-500.0,0.00012716,2]
[323494533,1714051844574,-500.0,0.00012716,2]
[323494534,1714051844583,-1594.45,0.00012716,2]
[323494535,1714051844592,-500.0,0.00012716,2]
[323494536,1714051844602,-500.0,0.00012716,2]
[323494537,1714051844612,-500.0,0.00012716,2]
[323494538,1714051844621,-500.0,0.00012716,2]
[323494539,1714051844631,-2807.99,0.00012716,2]
[323494540,1714051844641,-500.0,0.00012716,2]
[323494541,1714051844651,-500.0,0.00012716,2]
[323494542,1714051844661,-4961.15,0.00012716,2]
[323494543,1714051844670,-500.0,0.00012716,2]
[323494544,1714051844679,-500.0,0.00012716,2]
[323494545,1714051844688,-500.0,0.00012716,2]
[323494546,1714051844698,-500.0,0.00012716,2]
[323494547,1714051844707,-500.0,0.00012716,2]
[323494548,1714051844716,-500.0,0.00012716,2]
[323494549,1714051844725,-500.0,0.00012716,2]
[323494550,1714051844734,-15868.27,0.00012716,2]
[323494551,1714051844745,-500.0,0.00012716,2]
[323494552,1714051844754,-500.0,0.00012716,2]
[323494553,1714051844763,-1761.87,0.00012716,2]
[323494554,1714051844771,-516.19,0.00012716,2]
[323494555,1714051844782,-500.0,0.00012716,2]
[323494556,1714051844791,-500.0,0.00012716,2]
[323494557,1714051844800,-500.0,0.00012716,2]
[323494558,1714051844809,-500.0,0.00012716,2]
[323494559,1714051844818,-500.0,0.00012716,2]
[323494560,1714051844826,-500.0,0.00012716,2]
[323494561,1714051844835,-511.81,0.00012716,2]
[323494562,1714051844844,-500.0,0.00012716,2]
[323494563,1714051844853,-215.36225202,0.00012716,2]
[323494564,1714051844861,-500.0,0.00012716,2]
[323494565,1714051844870,-500.0,0.00012716,2]
[323494566,1714051844879,-500.0,0.00012716,2]
[323494567,1714051844887,-500.0,0.00012716,2]
[323494568,1714051844897,-500.0,0.00012716,2]
[323494569,1714051844907,-500.0,0.00012716,2]
[323494570,1714051844916,-500.0,0.00012716,2]
[323494571,1714051844925,-500.0,0.00012716,2]
[323494572,1714051844934,-500.0,0.00012717,2]
[323494573,1714051844943,-500.0,0.00012717,2]
[323494574,1714051844953,-12433.98,0.00012717,2]
[323494575,1714051844963,-2247.22,0.00012717,2]
[323494576,1714051844973,-937.02,0.00012717,2]
[323494577,1714051844983,-500.0,0.00012717,2]
[323494578,1714051844995,-4195.25,0.00012717,2]
[323494579,1714051845009,-500.0,0.00012717,2]
[323494580,1714051845019,-500.0,0.00012717,2]
[323494581,1714051845028,-500.0,0.00012717,2]
[323494582,1714051845037,-500.0,0.00012717,2]
[323494583,1714051845046,-1853.38,0.00012717,2]
[323494584,1714051845055,-1778.37,0.00012717,2]
[323494585,1714051845065,-500.0,0.00012717,2]
[323494586,1714051845074,-500.0,0.00012717,2]
[323494587,1714051845083,-3213.32,0.00012717,2]
[323494588,1714051845092,-500.0,0.00012717,2]
[323494589,1714051845102,-500.0,0.00012717,2]
[323494590,1714051845111,-500.0,0.00012717,2]
[323494591,1714051845121,-500.0,0.00012717,2]
[323494592,1714051845131,-534.63,0.00012717,2]
[323494593,1714051845140,-500.0,0.00012717,2]
[323494594,1714051845150,-500.0,0.00012717,2]
[323494595,1714051845160,-2293.65,0.00012717,2]
[323494596,1714051845170,-500.0,0.00012717,2]
[323494597,1714051845179,-500.0,0.00012717,2]
[323494598,1714051845188,-500.0,0.00012717,2]
[323494599,1714051845198,-1289.68,0.00012717,2]
[323494600,1714051845390,-500.0,0.00012717,2]
[323494601,1714051845400,-500.0,0.00012717,2]
[323494602,1714051845409,-500.0,0.00012717,2]
[323494603,1714051845419,-500.0,0.00012717,2]
[323494604,1714051845429,-500.0,0.00012717,2]
[323494605,1714051845439,-500.0,0.00012717,2]
[323494606,1714051845449,-5374.44,0.00012717,2]
[323494607,1714051845458,-886.8,0.00012717,2]
[323494608,1714051845468,-500.0,0.00012717,2]
[323494609,1714051845478,-1414.99,0.00012718,2]
[323494610,1714051845488,-4000.32,0.00012718,2]
[323494611,1714051845503,-1633.73,0.00012718,2]
[323494612,1714051845513,-500.0,0.00012718,2]
[323494613,1714051845523,-1291.85,0.00012718,2]
[323494614,1714051845533,-500.0,0.00012718,2]
[323494615,1714051845543,-500.0,0.00012718,2]
[323494616,1714051845553,-500.0,0.00012718,2]
[323494617,1714051845566,-24356.34,0.00012718,2]
[323494618,1714051845576,-500.0,0.00012718,2]
[323494619,1714051845585,-500.0,0.00012718,2]
[323494620,1714051845595,-500.0,0.00012718,2]
[323494621,1714051845605,-500.0,0.00012718,2]
[323494622,1714051845615,-500.0,0.00012718,2]
[323494623,1714051845624,-500.0,0.00012718,2]
[323494624,1714051845634,-500.0,0.00012718,2]
[323494625,1714051845644,-150.0,0.00012719,2]
[323494626,1714051845655,-150.46400573,0.00012721,2]
[323494627,1714051845664,-304.00623519,0.00012724,2]
[323494628,1714051845674,-150.0,0.00012725,2]
[323494629,1714051845683,-2376.30734306,0.00012729,2]
[323494630,1714051845693,-150.0,0.0001273,2]
[323494631,1714051845703,-150.0,0.00012732,2]
[323494632,1714051845713,-150.0,0.00012736,2]
[323494633,1714051845722,-150.0,0.00012737,2]
[323494634,1714051845732,-785.211595,0.00012748,2]
[323494635,1714051845744,-150.0,0.00012749,2]
[323494636,1714051845755,-150.0,0.00012752,2]
[323494637,1714051845764,-150.0,0.00012756,2]
[323494639,1714051845774,-151.43915286,0.00012758,2]
[323494641,1714051845783,-150.0,0.00012759,2]
[323494643,1714051845793,-150.0,0.00012761,2]
[323494645,1714051845802,-300.0,0.00012764,2]
[323494646,1714051845812,-150.0,0.00012767,2]
[323494647,1714051845821,-150.0,0.00012768,2]
[323494648,1714051845831,-160.6539788,0.00012771,2]
[323494649,1714051845841,-150.0,0.00012775,2]
[323494650,1714051845851,-150.0,0.00012776,2]
[323494651,1714051845862,-150.0,0.00012777,2]
[323494652,1714051845871,-300.0,0.00012778,2]
[323494654,1714051845882,-150.0,0.00012778,2]
[323494656,1714051845892,-200.00824992,0.0001278,2]
[323494658,1714051845902,-150.0,0.00012785,2]
[323494660,1714051845912,-271.62308864,0.00012789,2]
[323494662,1714051845922,-150.0,0.00012792,2]
[323494664,1714051845932,-500.0,0.00012796,2]
[323494667,1714051845942,-1000.0,0.00012797,2]
[323494670,1714051845952,-500.0,0.00012797,2]
[323494673,1714051845962,-150.0,0.00012797,2]
[323494675,1714051845972,-300.0,0.00012797,2]
[323494677,1714051845982,-785.211595,0.00012798,2]
[323494679,1714051845992,-155.22478226,0.00012798,2]
[323494681,1714051846006,-3075.58206305,0.00012798,2]
[323494683,1714051846016,-155.25533383,0.00012798,2]
[323494685,1714051846026,-296.23440643,0.00012798,2]
[323494687,1714051846036,-409.15313021,0.00012798,2]
[323494688,1714051846047,-3011.72366215,0.00012798,2]
[323494689,1714051846057,-782.66617723,0.00012798,2]
[323494690,1714051846067,-261.85017646,0.00012798,2]
[323494691,1714051846077,-215.82575411,0.00012798,2]
[323494692,1714051846087,-2121.75343201,0.00012798,2]
[323494693,1714051846097,-509.10572228,0.00012799,2]
[323494694,1714051846107,-207.85411425,0.00012799,2]
[323494695,1714051846117,-1651.47,0.00012799,2]
[323494696,1714051846128,-919.0,0.000128,2]
[323494697,1714051846138,-1000.0,0.000128,2]
[323494698,1714051846148,-365086.45990257,0.000128,2]
[323494699,1714051846158,-254.88867539,0.000128,2]
[323494700,1714051846167,-151.0,0.000128,2]
[323494701,1714051846177,-151.0,0.000128,2]
[323494702,1714051846187,-233.425575,0.000128,2]
[323494703,1714051846197,-233.425575,0.000128,2]
[323494704,1714051846207,-151.0,0.000128,2]
[323494705,1714051846217,-151.0,0.000128,2]
[323494706,1714051846227,-1974.40947182,0.000128,2]
[323494707,1714051846237,-412.7126299,0.000128,2]
[323494708,1714051846249,-150.0,0.00012802,2]
[323494709,1714051846259,-151.43915286,0.00012805,2]
[323494710,1714051846269,-150.0,0.00012809,2]
[323494711,1714051846311,-150.0,0.00012811,2]
[323494712,1714051846321,-150.0,0.00012816,2]
[323494713,1714051846330,-150.0,0.00012821,2]
[323494714,1714051846340,-150.0,0.00012824,2]
[323494715,1714051846350,-159.56743062,0.00012824,2]
[323494716,1714051846360,-150.0,0.00012827,2]
[323494717,1714051846370,-1500.0,0.00012829,2]
[323494718,1714051846380,-150.0,0.00012831,2]
[323494719,1714051846389,-300.0,0.00012834,2]
[323494720,1714051846399,-150.0,0.00012836,2]
[323494721,1714051846409,-150.0,0.00012837,2]
[323494722,1714051846418,-150.0,0.0001284,2]
[323494723,1714051846428,-150.0,0.00012841,2]
[323494724,1714051846437,-150.0,0.00012841,2]
[323494725,1714051846446,-300.0,0.00012844,2]
[323494726,1714051846456,-150.0,0.00012845,2]
[323494727,1714051846465,-150.0,0.00012846,2]
[323494728,1714051846474,-150.0,0.0001285,2]
[323494729,1714051846483,-1974.40947181,0.0001285,2]
[323494730,1714051846491,-412.71262988,0.0001285,2]
[323494731,1714051846505,-151.43915286,0.00012853,2]
[323494732,1714051846515,-150.0,0.00012858,2]
[323494733,1714051846524,-150.0,0.00012863,2]
[323494734,1714051846533,-150.0,0.00012868,2]
[323494736,1714051846542,-300.0,0.00012871,2]
[323494738,1714051846551,-150.0,0.00012871,2]
[323494739,1714051846561,-150.0,0.00012872,2]
[323494740,1714051846571,-150.0,0.00012873,2]
[323494741,1714051846581,-150.0,0.00012877,2]
[323494742,1714051846590,-150.0,0.00012877,2]
[323494744,1714051846598,-150.0,0.0001288,2]
[323494745,1714051846608,-150.0,0.00012882,2]
[323494746,1714051846618,-150.0,0.00012883,2]
[323494747,1714051846629,-301.68072993,0.00012887,2]
[323494748,1714051846640,-1276.1873568,0.00012887,2]
[323494749,1714051846650,-8141.6653129,0.00012887,2]
[323494750,1714051846660,-1209.6091442,0.00012887,2]
[323494751,1714051846671,-11115.1566628,0.00012887,2]
[323494752,1714051846680,-704.9284051,0.00012887,2]
[323494753,1714051846690,-2001.5355326,0.00012887,2]
[323494754,1714051846701,-9419.5291307,0.00012887,2]
[323494755,1714051846712,-1010.3377521,0.00012887,2]
[323494756,1714051846723,-1327.1626985,0.00012887,2]
[323494757,1714051846734,-500.0,0.00012888,2]
[323494758,1714051846748,-500.0,0.00012888,2]
[323494759,1714051846758,-592.71976345,0.00012888,2]
[323494760,1714051846768,-10000.0,0.00012888,2]
[323494761,1714051846778,-500.0,0.00012888,2]
[323494762,1714051846789,-500.0,0.00012888,2]
[323494763,1714051846799,-500.0,0.00012888,2]
[323494764,1714051846809,-500.0,0.00012888,2]
[323494765,1714051846819,-500.0,0.00012888,2]
[323494766,1714051846829,-500.0,0.00012888,2]
[323494767,1714051846839,-379.36531968,0.00012888,2]
[323494768,1714051846848,-500.0,0.00012888,2]
[323494769,1714051846858,-500.0,0.00012888,2]
[323494770,1714051846868,-500.0,0.00012888,2]
[323494771,1714051846878,-500.0,0.00012888,2]
[323494772,1714051846888,-500.0,0.00012888,2]
[323494773,1714051846899,-500.0,0.00012888,2]
[323494774,1714051846909,-500.0,0.00012888,2]
[323494775,1714051846919,-500.0,0.00012888,2]
[323494776,1714051846928,-500.0,0.00012888,2]